[Event "Live Chess"]
[Site "Chess.com"]
[Date "2024.06.02"]
[Round "-"]
[White "ProfessorChess101"]
[Black "Ferrarifan27"]
[Result "1-0"]
[WhiteElo "2729"]
[BlackElo "2165"]
[TimeControl "300"]
[EndTime "5:22:59 PDT"]
[Termination "ProfessorChess101 won by resignation"]

1. e4 {[%clk 0:04:54.5]} 1... e5 {[%clk 0:04:58.5]} 2. Nf3 {[%clk 0:04:53.4]}
2... Nc6 {[%clk 0:04:57.6]} 3. Bc4 {[%clk 0:04:50]} 3... Bc5 {[%clk 0:04:54.8]}
4. O-O {[%clk 0:04:46.2]} 4... d6 {[%clk 0:04:52.9]} 5. d3 {[%clk 0:04:37.3]}
5... a6 {[%clk 0:04:51.3]} 6. a4 {[%clk 0:04:35.2]} 6... Nf6 {[%clk 0:04:46.3]}
7. h3 {[%clk 0:04:30.6]} 7... O-O {[%clk 0:04:43.9]} 8. Bg5 {[%clk 0:04:29.2]}
8... h6 {[%clk 0:04:42.9]} 9. Bh4 {[%clk 0:04:28]} 9... Be6 {[%clk 0:04:41.7]}
10. Nc3 {[%clk 0:04:26.4]} 10... Bxc4 {[%clk 0:04:39.7]} 11. dxc4 {[%clk
0:04:26.3]} 11... Nd4 {[%clk 0:04:27.4]} 12. Nd5 {[%clk 0:04:22]} 12... g5
{[%clk 0:04:15.6]} 13. Nxg5 {[%clk 0:03:51.6]} 13... Nxe4 {[%clk 0:03:54.1]} 14.
Nxe4 {[%clk 0:03:35.2]} 14... Qxh4 {[%clk 0:03:51.6]} 15. Nef6+ {[%clk
0:03:25.6]} 15... Kh8 {[%clk 0:03:47.3]} 16. Qd3 {[%clk 0:03:21.1]} 16... e4
{[%clk 0:03:38.3]} 17. Nxe4 {[%clk 0:03:15.8]} 17... f5 {[%clk 0:03:36]} 18.
Nxc5 {[%clk 0:03:10.5]} 18... dxc5 {[%clk 0:03:33.7]} 19. Rae1 {[%clk
0:03:02.3]} 19... c6 {[%clk 0:03:30]} 20. Ne7 {[%clk 0:02:53.9]} 20... Qg5
{[%clk 0:03:15.3]} 21. c3 {[%clk 0:02:39.9]} 21... Nb3 {[%clk 0:03:06.1]} 22.
Re6 {[%clk 0:02:25.6]} 22... Rf7 {[%clk 0:02:50.2]} 23. Ng6+ {[%clk 0:02:15.4]}
23... Kg7 {[%clk 0:02:47.8]} 24. Ne5 {[%clk 0:02:10.6]} 24... Rff8 {[%clk
0:02:42.2]} 25. Qd7+ {[%clk 0:02:04]} 25... Kh8 {[%clk 0:02:40.4]} 26. Rg6
{[%clk 0:01:49.3]} 1-0

[Event "Live Chess"]
[Site "Chess.com"]
[Date "2024.06.02"]
[Round "-"]
[White "road2gm5000"]
[Black "ameetghasi100"]
[Result "0-1"]
[WhiteElo "1130"]
[BlackElo "2766"]
[TimeControl "300"]
[EndTime "5:23:19 PDT"]
[Termination "ameetghasi100 won by resignation"]

1. e4 {[%clk 0:04:58.5]} 1... b6 {[%clk 0:04:59]} 2. d4 {[%clk 0:04:57.4]} 2...
a6 {[%clk 0:04:58.6]} 3. Nc3 {[%clk 0:04:56.9]} 3... e6 {[%clk 0:04:58.3]} 4.
Nf3 {[%clk 0:04:56.3]} 4... g6 {[%clk 0:04:58.1]} 5. Bd3 {[%clk 0:04:55.7]} 5...
h6 {[%clk 0:04:57.8]} 6. Be3 {[%clk 0:04:55]} 6... Bg7 {[%clk 0:04:57.6]} 7. O-O
{[%clk 0:04:52.8]} 7... Ne7 {[%clk 0:04:57.3]} 8. h3 {[%clk 0:04:52.3]} 8... d6
{[%clk 0:04:57]} 9. Qd2 {[%clk 0:04:51.8]} 9... Nd7 {[%clk 0:04:56.6]} 10. Rac1
{[%clk 0:04:49.8]} 10... Bb7 {[%clk 0:04:56.3]} 11. a3 {[%clk 0:04:48.3]} 11...
g5 {[%clk 0:04:56.1]} 12. Rfe1 {[%clk 0:04:44.6]} 12... Ng6 {[%clk 0:04:54.9]}
13. Nxg5 {[%clk 0:04:22.2]} 13... hxg5 {[%clk 0:04:53.6]} 14. Bxg5 {[%clk
0:04:22.1]} 14... Bf6 {[%clk 0:04:51.7]} 15. Bxf6 {[%clk 0:04:18.2]} 15... Qxf6
{[%clk 0:04:51.3]} 16. Qe3 {[%clk 0:04:10.3]} 16... Qf4 {[%clk 0:04:49.4]} 17.
Qxf4 {[%clk 0:04:09]} 17... Nxf4 {[%clk 0:04:48.6]} 18. f3 {[%clk 0:04:05.9]}
18... Rg8 {[%clk 0:04:47.4]} 19. Bf1 {[%clk 0:04:00.8]} 19... Nxh3+ {[%clk
0:04:46.4]} 20. Kh1 {[%clk 0:03:59.3]} 20... Nf4 {[%clk 0:04:45.9]} 21. e5
{[%clk 0:03:56.1]} 21... O-O-O {[%clk 0:04:45.2]} 22. exd6 {[%clk 0:03:55.2]}
22... cxd6 {[%clk 0:04:44.9]} 23. Na4 {[%clk 0:03:49.6]} 23... b5 {[%clk
0:04:43.3]} 24. Nc3 {[%clk 0:03:48.8]} 24... Rh8+ {[%clk 0:04:42.1]} 25. Kg1
{[%clk 0:03:47.2]} 25... Rdg8 {[%clk 0:04:41.7]} 26. Kf2 {[%clk 0:03:44.4]}
26... Rh2 {[%clk 0:04:40.5]} 27. Ke3 {[%clk 0:03:42.4]} 27... Nxg2+ {[%clk
0:04:39.6]} 28. Bxg2 {[%clk 0:03:41.3]} 28... Rgxg2 {[%clk 0:04:38.7]} 29. Ne2
{[%clk 0:03:37]} 29... Nb6 {[%clk 0:04:36.8]} 30. Nf4 {[%clk 0:03:36.1]} 30...
Nc4+ {[%clk 0:04:35.1]} 0-1

[Event "Live Chess"]
[Site "Chess.com"]
[Date "2024.06.02"]
[Round "-"]
[White "ACM42"]
[Black "juniortay"]
[Result "1-0"]
[WhiteElo "2226"]
[BlackElo "2338"]
[TimeControl "300"]
[EndTime "5:23:23 PDT"]
[Termination "ACM42 won by resignation"]

1. e4 {[%clk 0:04:56.1]} 1... e5 {[%clk 0:04:58.5]} 2. Nf3 {[%clk 0:04:54.3]}
2... Nf6 {[%clk 0:04:58]} 3. Nc3 {[%clk 0:04:49.6]} 3... Nc6 {[%clk 0:04:57.4]}
4. d4 {[%clk 0:04:42.6]} 4... exd4 {[%clk 0:04:56.4]} 5. Nxd4 {[%clk 0:04:36.2]}
5... Bb4 {[%clk 0:04:54.4]} 6. Nxc6 {[%clk 0:04:24.7]} 6... bxc6 {[%clk
0:04:54.3]} 7. Bd3 {[%clk 0:04:22.9]} 7... d5 {[%clk 0:04:53.6]} 8. exd5 {[%clk
0:04:19.7]} 8... O-O {[%clk 0:04:52.8]} 9. O-O {[%clk 0:04:18.2]} 9... cxd5
{[%clk 0:04:51.6]} 10. a3 {[%clk 0:04:16]} 10... Be7 {[%clk 0:04:49.4]} 11. Bf4
{[%clk 0:04:11.8]} 11... c6 {[%clk 0:04:48.7]} 12. h3 {[%clk 0:04:09.7]} 12...
h6 {[%clk 0:04:48.1]} 13. Ne2 {[%clk 0:04:02.9]} 13... Bd6 {[%clk 0:04:47.1]}
14. Qd2 {[%clk 0:04:00.6]} 14... Re8 {[%clk 0:04:46.1]} 15. Rae1 {[%clk
0:03:57.5]} 15... Be6 {[%clk 0:04:44.4]} 16. Nd4 {[%clk 0:03:55.3]} 16... Qd7
{[%clk 0:04:37]} 17. Nxe6 {[%clk 0:03:18.4]} 17... fxe6 {[%clk 0:04:34.1]} 18.
Bg6 {[%clk 0:03:17.5]} 18... Rf8 {[%clk 0:04:31.1]} 19. Be5 {[%clk 0:03:12.8]}
19... Bxe5 {[%clk 0:04:20.5]} 20. Rxe5 {[%clk 0:03:11.5]} 20... Qb7 {[%clk
0:04:05.6]} 21. Rxe6 {[%clk 0:03:04.4]} 21... Qxb2 {[%clk 0:04:01.7]} 22. Rxc6
{[%clk 0:02:27.9]} 22... Rad8 {[%clk 0:03:51]} 23. Re1 {[%clk 0:02:10.4]} 23...
Qxa3 {[%clk 0:03:45.5]} 24. Rc7 {[%clk 0:02:09.1]} 24... Ne4 {[%clk 0:03:24.4]}
25. Qd4 {[%clk 0:02:07.3]} 25... Nf6 {[%clk 0:01:38.5]} 26. Ree7 {[%clk
0:02:03]} 26... Qc1+ {[%clk 0:01:26.1]} 27. Kh2 {[%clk 0:02:01.1]} 1-0

[Event "Live Chess"]
[Site "Chess.com"]
[Date "2024.06.02"]
[Round "-"]
[White "Dhaydon19"]
[Black "Duke_of_Bebington"]
[Result "1-0"]
[WhiteElo "2640"]
[BlackElo "1617"]
[TimeControl "300"]
[EndTime "5:23:33 PDT"]
[Termination "Dhaydon19 won by resignation"]

1. d4 {[%clk 0:04:58.7]} 1... d5 {[%clk 0:04:58.1]} 2. Nf3 {[%clk 0:04:58.4]}
2... Nf6 {[%clk 0:04:56.9]} 3. g3 {[%clk 0:04:57.1]} 3... Bf5 {[%clk 0:04:51]}
4. c3 {[%clk 0:04:56.9]} 4... e6 {[%clk 0:04:50]} 5. Bg2 {[%clk 0:04:56.6]} 5...
c5 {[%clk 0:04:49.1]} 6. O-O {[%clk 0:04:56.3]} 6... Nc6 {[%clk 0:04:46.9]} 7.
dxc5 {[%clk 0:04:55.1]} 7... Bxc5 {[%clk 0:04:45.4]} 8. Nbd2 {[%clk 0:04:54]}
8... O-O {[%clk 0:04:43.7]} 9. Nb3 {[%clk 0:04:53.6]} 9... Bb6 {[%clk
0:04:42.4]} 10. Nbd4 {[%clk 0:04:52.9]} 10... Nxd4 {[%clk 0:04:41.3]} 11. Nxd4
{[%clk 0:04:51.1]} 11... Bxd4 {[%clk 0:04:39.2]} 12. Qxd4 {[%clk 0:04:49.2]}
12... h6 {[%clk 0:04:29.9]} 13. b3 {[%clk 0:04:46.5]} 13... Qe7 {[%clk
0:04:12.7]} 14. Bb2 {[%clk 0:04:44]} 14... Ne4 {[%clk 0:04:01.5]} 15. c4 {[%clk
0:04:40.3]} 15... f6 {[%clk 0:03:53.9]} 16. cxd5 {[%clk 0:04:37.4]} 16... exd5
{[%clk 0:03:52.7]} 17. Qxd5+ {[%clk 0:04:35.8]} 17... Kh8 {[%clk 0:03:50.2]} 18.
Qxf5 {[%clk 0:04:18.8]} 1-0

[Event "Live Chess"]
[Site "Chess.com"]
[Date "2024.06.02"]
[Round "-"]
[White "CarmelJane"]
[Black "MagnersCarlsberg2870"]
[Result "0-1"]
[WhiteElo "2020"]
[BlackElo "1781"]
[TimeControl "300"]
[EndTime "5:24:11 PDT"]
[Termination "MagnersCarlsberg2870 won by resignation"]

1. Nf3 {[%clk 0:04:56.7]} 1... Nc6 {[%clk 0:04:58.2]} 2. b3 {[%clk 0:04:55.5]}
2... e5 {[%clk 0:04:50.9]} 3. e4 {[%clk 0:04:49.6]} 3... Nf6 {[%clk 0:04:48.4]}
4. d3 {[%clk 0:04:47.3]} 4... Bc5 {[%clk 0:04:46.8]} 5. Be2 {[%clk 0:04:44.3]}
5... d6 {[%clk 0:04:44.1]} 6. O-O {[%clk 0:04:41.4]} 6... h5 {[%clk 0:04:42.1]}
7. Bg5 {[%clk 0:04:29.5]} 7... Bg4 {[%clk 0:04:36]} 8. h3 {[%clk 0:04:27.6]}
8... Be6 {[%clk 0:04:17.3]} 9. a3 {[%clk 0:04:08.9]} 9... a5 {[%clk 0:04:15]}
10. Nbd2 {[%clk 0:03:56.8]} 10... Qd7 {[%clk 0:04:12.2]} 11. Nc4 {[%clk
0:03:48.6]} 11... Bxh3 {[%clk 0:04:02.4]} 12. gxh3 {[%clk 0:03:36.8]} 12... Qxh3
{[%clk 0:04:01.1]} 13. Bxf6 {[%clk 0:03:28.5]} 13... gxf6 {[%clk 0:03:59.5]} 14.
Nh2 {[%clk 0:03:27.5]} 14... Rg8+ {[%clk 0:03:57.6]} 15. Ng4 {[%clk 0:03:16.6]}
15... hxg4 {[%clk 0:03:53]} 16. Bxg4 {[%clk 0:03:15.4]} 0-1

[Event "Live Chess"]
[Site "Chess.com"]
[Date "2024.06.02"]
[Round "-"]
[White "PETROMICH1967"]
[Black "vincents82"]
[Result "0-1"]
[WhiteElo "1352"]
[BlackElo "1994"]
[TimeControl "300"]
[EndTime "5:24:47 PDT"]
[Termination "vincents82 won by resignation"]

1. e4 {[%clk 0:04:54.5]} 1... d5 {[%clk 0:04:58.8]} 2. exd5 {[%clk 0:04:52.2]}
2... Qxd5 {[%clk 0:04:58.1]} 3. Nc3 {[%clk 0:04:51.4]} 3... Qd8 {[%clk
0:04:56.7]} 4. d4 {[%clk 0:04:50.9]} 4... Nf6 {[%clk 0:04:55.8]} 5. Bc4 {[%clk
0:04:49.8]} 5... a6 {[%clk 0:04:54.5]} 6. Nge2 {[%clk 0:04:47.8]} 6... b5 {[%clk
0:04:51.1]} 7. Bb3 {[%clk 0:04:45.1]} 7... c5 {[%clk 0:04:48.1]} 8. dxc5 {[%clk
0:04:42.1]} 8... Qxd1+ {[%clk 0:04:46.8]} 9. Nxd1 {[%clk 0:04:39]} 9... e6
{[%clk 0:04:46.5]} 10. Be3 {[%clk 0:04:31.1]} 10... Bb7 {[%clk 0:04:44.2]} 11.
O-O {[%clk 0:04:28.3]} 11... Nbd7 {[%clk 0:04:42.5]} 12. c4 {[%clk 0:04:16.3]}
12... Bxc5 {[%clk 0:04:39.9]} 13. cxb5 {[%clk 0:04:13.2]} 13... axb5 {[%clk
0:04:36.4]} 14. a3 {[%clk 0:04:05.7]} 14... O-O {[%clk 0:04:34.6]} 15. Nd4
{[%clk 0:03:56.8]} 15... Ba6 {[%clk 0:04:20.4]} 16. Nc6 {[%clk 0:03:13.2]} 16...
Rfc8 {[%clk 0:04:14.6]} 17. Bxc5 {[%clk 0:03:03.9]} 17... Nxc5 {[%clk
0:04:07.2]} 18. Ne7+ {[%clk 0:03:00.8]} 18... Kf8 {[%clk 0:04:06.2]} 19. Nxc8
{[%clk 0:02:58.7]} 19... Nxb3 {[%clk 0:04:05.4]} 20. Nb6 {[%clk 0:02:43.1]}
20... Rb8 {[%clk 0:03:58.5]} 21. Nd7+ {[%clk 0:02:13.6]} 21... Nxd7 {[%clk
0:03:56.5]} 22. Rb1 {[%clk 0:02:12.4]} 22... Nd2 {[%clk 0:03:54.5]} 23. Rc1
{[%clk 0:02:09.1]} 23... Nxf1 {[%clk 0:03:51.8]} 24. Kxf1 {[%clk 0:02:08.5]}
24... b4+ {[%clk 0:03:50.6]} 25. Ke1 {[%clk 0:02:05.7]} 25... bxa3 {[%clk
0:03:47.1]} 26. bxa3 {[%clk 0:02:02.9]} 26... Rb7 {[%clk 0:03:43.6]} 27. Rc3
{[%clk 0:01:59.5]} 27... Ke7 {[%clk 0:03:41.9]} 28. Kd2 {[%clk 0:01:58]} 28...
Nf6 {[%clk 0:03:39.8]} 29. f3 {[%clk 0:01:53]} 29... Nd5 {[%clk 0:03:34.9]} 30.
Rc5 {[%clk 0:01:49.6]} 30... Rd7 {[%clk 0:03:27.2]} 31. Kc1 {[%clk 0:01:43.9]}
31... Rc7 {[%clk 0:03:19.4]} 32. Rxc7+ {[%clk 0:01:40.7]} 32... Nxc7 {[%clk
0:03:18.2]} 33. Nc3 {[%clk 0:01:39.7]} 33... Nb5 {[%clk 0:03:15.1]} 34. Nxb5
{[%clk 0:01:34.2]} 34... Bxb5 {[%clk 0:03:14]} 35. g3 {[%clk 0:01:32.9]} 35...
Kd6 {[%clk 0:03:13.7]} 36. Kb2 {[%clk 0:01:31.4]} 36... Kc5 {[%clk 0:03:13.4]}
37. Kc3 {[%clk 0:01:30.5]} 37... e5 {[%clk 0:03:12.7]} 38. h4 {[%clk 0:01:28.4]}
38... f5 {[%clk 0:03:11.8]} 39. g4 {[%clk 0:01:26.1]} 39... fxg4 {[%clk
0:03:09.7]} 40. fxg4 {[%clk 0:01:25]} 40... e4 {[%clk 0:03:08.5]} 41. g5 {[%clk
0:01:21.7]} 41... e3 {[%clk 0:03:07.4]} 42. h5 {[%clk 0:01:16.7]} 42... h6
{[%clk 0:02:55]} 43. gxh6 {[%clk 0:01:11.5]} 43... gxh6 {[%clk 0:02:53.9]} 44.
a4 {[%clk 0:01:09.3]} 44... Ba6 {[%clk 0:02:50.8]} 45. a5 {[%clk 0:01:02.4]}
45... Bb5 {[%clk 0:02:45.2]} 0-1

[Event "Live Chess"]
[Site "Chess.com"]
[Date "2024.06.02"]
[Round "-"]
[White "defenderalist"]
[Black "gmnorfolk"]
[Result "0-1"]
[WhiteElo "1542"]
[BlackElo "2149"]
[TimeControl "300"]
[EndTime "5:25:16 PDT"]
[Termination "gmnorfolk won by resignation"]

1. e4 {[%clk 0:04:58.5]} 1... c5 {[%clk 0:04:58.5]} 2. Nf3 {[%clk 0:04:53.7]}
2... d6 {[%clk 0:04:57.7]} 3. Bc4 {[%clk 0:04:52.3]} 3... Nf6 {[%clk 0:04:55.5]}
4. Nc3 {[%clk 0:04:50.3]} 4... Nc6 {[%clk 0:04:53.6]} 5. O-O {[%clk 0:04:46.4]}
5... g6 {[%clk 0:04:53.1]} 6. d4 {[%clk 0:04:44.7]} 6... cxd4 {[%clk 0:04:51.1]}
7. Nxd4 {[%clk 0:04:44.4]} 7... Bg7 {[%clk 0:04:50.5]} 8. Bg5 {[%clk 0:04:40.2]}
8... Nxe4 {[%clk 0:04:45.1]} 9. Nxc6 {[%clk 0:04:33.2]} 9... bxc6 {[%clk
0:04:42.1]} 10. Nxe4 {[%clk 0:04:32.1]} 10... d5 {[%clk 0:04:41.2]} 11. Bb3
{[%clk 0:04:09.7]} 11... dxe4 {[%clk 0:04:38.4]} 12. Qe2 {[%clk 0:04:06.5]}
12... O-O {[%clk 0:04:20.4]} 13. Qxe4 {[%clk 0:04:05.1]} 13... Qc7 {[%clk
0:04:10.1]} 14. Qxe7 {[%clk 0:04:01.2]} 14... Qxe7 {[%clk 0:04:08.1]} 15. Bxe7
{[%clk 0:04:00]} 15... Re8 {[%clk 0:04:07.6]} 16. Ba3 {[%clk 0:03:48.5]} 16...
a5 {[%clk 0:03:57.9]} 17. c3 {[%clk 0:03:47.3]} 17... Bf5 {[%clk 0:03:54.7]} 18.
Rfe1 {[%clk 0:03:38.6]} 18... Red8 {[%clk 0:03:49.7]} 19. Rad1 {[%clk
0:03:35.3]} 19... Bf6 {[%clk 0:03:37.4]} 20. h3 {[%clk 0:03:26.5]} 20... Bd3
{[%clk 0:03:28.3]} 21. Re3 {[%clk 0:03:10.7]} 21... Bf5 {[%clk 0:03:15.3]} 22.
g4 {[%clk 0:02:57.8]} 22... Rxd1+ {[%clk 0:03:08.6]} 23. Bxd1 {[%clk 0:02:56.5]}
23... Be6 {[%clk 0:03:07.6]} 24. b3 {[%clk 0:02:55]} 24... Rd8 {[%clk
0:03:02.4]} 25. Bf3 {[%clk 0:02:49.7]} 25... Rd2 {[%clk 0:02:56.2]} 26. Bxc6
{[%clk 0:02:28.7]} 26... Rxa2 {[%clk 0:02:53.8]} 27. Bd6 {[%clk 0:02:08.1]}
27... Rd2 {[%clk 0:02:39.1]} 28. Be5 {[%clk 0:01:55.5]} 28... Bxe5 {[%clk
0:02:23.2]} 29. Rxe5 {[%clk 0:01:53.7]} 29... Rd3 {[%clk 0:02:21.4]} 30. Rxa5
{[%clk 0:01:42.6]} 30... Rxc3 {[%clk 0:02:19.9]} 31. Ba4 {[%clk 0:01:38.8]}
31... Rxh3 {[%clk 0:02:17.8]} 32. g5 {[%clk 0:01:28.4]} 32... Bxb3 {[%clk
0:02:10.6]} 33. Bxb3 {[%clk 0:01:26]} 33... Rxb3 {[%clk 0:02:09.2]} 34. Kg2
{[%clk 0:01:23.5]} 34... Kg7 {[%clk 0:02:07.2]} 35. f4 {[%clk 0:01:15.9]} 35...
h5 {[%clk 0:01:59.2]} 36. gxh6+ {[%clk 0:01:07.6]} 36... Kxh6 {[%clk 0:01:57.2]}
37. Ra4 {[%clk 0:01:04.5]} 37... f5 {[%clk 0:01:50.2]} 38. Rd4 {[%clk
0:01:02.1]} 38... Kh5 {[%clk 0:01:48.3]} 39. Rd8 {[%clk 0:00:49.8]} 39... Kg4
{[%clk 0:01:46.1]} 40. Rg8 {[%clk 0:00:38.8]} 40... Rg3+ {[%clk 0:01:44.4]} 41.
Kh2 {[%clk 0:00:37.4]} 41... Kxf4 {[%clk 0:01:43.2]} 0-1

[Event "Live Chess"]
[Site "Chess.com"]
[Date "2024.06.02"]
[Round "-"]
[White "elephantgerrald"]
[Black "WilliamofOrange16th"]
[Result "0-1"]
[WhiteElo "873"]
[BlackElo "2005"]
[TimeControl "300"]
[EndTime "5:25:38 PDT"]
[Termination "WilliamofOrange16th won on time"]

1. e4 {[%clk 0:04:58.4]} 1... d6 {[%clk 0:04:59.2]} 2. d4 {[%clk 0:04:56.8]}
2... Nf6 {[%clk 0:04:58.8]} 3. Nc3 {[%clk 0:04:54.9]} 3... Nbd7 {[%clk
0:04:57.8]} 4. Nf3 {[%clk 0:04:53.8]} 4... e5 {[%clk 0:04:57.5]} 5. d5 {[%clk
0:04:52.6]} 5... c6 {[%clk 0:04:55.1]} 6. dxc6 {[%clk 0:04:51.6]} 6... bxc6
{[%clk 0:04:55]} 7. Bg5 {[%clk 0:04:49.2]} 7... Be7 {[%clk 0:04:54.5]} 8. Bxf6
{[%clk 0:04:48.1]} 8... Nxf6 {[%clk 0:04:51.9]} 9. g3 {[%clk 0:04:47.1]} 9...
O-O {[%clk 0:04:50.9]} 10. Bg2 {[%clk 0:04:46]} 10... Bg4 {[%clk 0:04:47.5]} 11.
O-O {[%clk 0:04:44.5]} 11... Rb8 {[%clk 0:04:44.1]} 12. b3 {[%clk 0:04:42.8]}
12... Qa5 {[%clk 0:04:41.8]} 13. Qd3 {[%clk 0:04:28.4]} 13... Rfd8 {[%clk
0:04:37.1]} 14. h3 {[%clk 0:04:25.3]} 14... Bh5 {[%clk 0:04:29.7]} 15. Ne2
{[%clk 0:04:08.1]} 15... Bg6 {[%clk 0:04:20.4]} 16. Ng5 {[%clk 0:03:48.2]} 16...
d5 {[%clk 0:04:16.3]} 17. h4 {[%clk 0:03:21.5]} 17... h6 {[%clk 0:04:14.4]} 18.
Nh3 {[%clk 0:03:04.6]} 18... Nxe4 {[%clk 0:04:12.7]} 19. Bxe4 {[%clk 0:02:59.2]}
19... Bxe4 {[%clk 0:04:12.6]} 20. Qe3 {[%clk 0:02:55.7]} 20... Bc5 {[%clk
0:04:09.1]} 21. Qc3 {[%clk 0:02:20.6]} 21... Qxc3 {[%clk 0:04:00.4]} 22. Nxc3
{[%clk 0:02:13.9]} 22... Bxc2 {[%clk 0:03:56.9]} 23. Na4 {[%clk 0:01:55.5]}
23... Bd4 {[%clk 0:03:51.7]} 24. Rac1 {[%clk 0:01:47.3]} 24... Bf5 {[%clk
0:03:50.6]} 25. Kg2 {[%clk 0:01:41.7]} 25... e4 {[%clk 0:03:48.9]} 26. f4 {[%clk
0:00:47.1]} 26... exf3+ {[%clk 0:03:35.1]} 27. Rxf3 {[%clk 0:00:44.5]} 27... Be4
{[%clk 0:03:34.5]} 28. Kh2 {[%clk 0:00:41.6]} 28... Bxf3 {[%clk 0:03:33.3]} 29.
Rxc6 {[%clk 0:00:41.5]} 29... Re8 {[%clk 0:03:26.3]} 30. Nf4 {[%clk 0:00:25.8]}
30... Rbc8 {[%clk 0:03:17.7]} 31. Rxc8 {[%clk 0:00:05.6]} 31... Rxc8 {[%clk
0:03:17.6]} 32. Nxd5 {[%clk 0:00:04.7]} 32... Rc2+ {[%clk 0:03:16.5]} 33. Kh3
{[%clk 0:00:04.6]} 33... h5 {[%clk 0:03:14.7]} 34. g4 {[%clk 0:00:03.1]} 34...
Bxg4+ {[%clk 0:03:13.7]} 35. Kg3 {[%clk 0:00:03]} 35... Be5+ {[%clk 0:03:12.1]}
0-1

[Event "Live Chess"]
[Site "Chess.com"]
[Date "2024.06.02"]
[Round "-"]
[White "BearFromUkraine"]
[Black "ProfPoisson"]
[Result "1/2-1/2"]
[WhiteElo "1020"]
[BlackElo "1320"]
[TimeControl "300"]
[EndTime "5:26:00 PDT"]
[Termination "Game drawn - insufficient material"]

1. e4 {[%clk 0:04:51]} 1... e5 {[%clk 0:04:58.3]} 2. Nf3 {[%clk 0:04:49.7]} 2...
Nf6 {[%clk 0:04:56.6]} 3. Nxe5 {[%clk 0:04:48.3]} 3... Nxe4 {[%clk 0:04:55.2]}
4. Qe2 {[%clk 0:04:46]} 4... Qe7 {[%clk 0:04:52.7]} 5. Qxe4 {[%clk 0:04:43.7]}
5... d6 {[%clk 0:04:51.3]} 6. d4 {[%clk 0:04:29.6]} 6... dxe5 {[%clk 0:04:49.7]}
7. Qxe5 {[%clk 0:04:28.5]} 7... Qxe5+ {[%clk 0:04:48.1]} 8. dxe5 {[%clk
0:04:27.3]} 8... Nc6 {[%clk 0:04:47]} 9. Bf4 {[%clk 0:04:24.1]} 9... Bf5 {[%clk
0:04:46.4]} 10. Bd3 {[%clk 0:04:18]} 10... Bxd3 {[%clk 0:04:43.1]} 11. cxd3
{[%clk 0:04:16.2]} 11... Nb4 {[%clk 0:04:42.6]} 12. Na3 {[%clk 0:03:57.9]} 12...
Nxd3+ {[%clk 0:04:38.5]} 13. Kf1 {[%clk 0:03:41.6]} 13... Nxf4 {[%clk
0:04:35.5]} 14. g3 {[%clk 0:03:35.9]} 14... Nd3 {[%clk 0:04:26.9]} 15. Kg2
{[%clk 0:03:28.4]} 15... Nxe5 {[%clk 0:04:21.9]} 16. Rhe1 {[%clk 0:03:27]} 16...
f6 {[%clk 0:04:16]} 17. f4 {[%clk 0:03:25.6]} 17... Bxa3 {[%clk 0:04:13.4]} 18.
bxa3 {[%clk 0:03:19.6]} 18... O-O-O {[%clk 0:04:11.9]} 19. fxe5 {[%clk
0:03:18.2]} 19... fxe5 {[%clk 0:04:07.9]} 20. Rxe5 {[%clk 0:03:09]} 20... Rhf8
{[%clk 0:04:05.8]} 21. Re7 {[%clk 0:02:57.1]} 21... Rd2+ {[%clk 0:04:02.5]} 22.
Kg1 {[%clk 0:02:48.8]} 22... Rd7 {[%clk 0:03:57.6]} 23. Rae1 {[%clk 0:02:45.1]}
23... Rxe7 {[%clk 0:03:54]} 24. Rxe7 {[%clk 0:02:43.4]} 24... Rg8 {[%clk
0:03:50.6]} 25. Kf2 {[%clk 0:02:38]} 25... Kd8 {[%clk 0:03:50]} 26. Rf7 {[%clk
0:02:35.9]} 26... b6 {[%clk 0:03:24.8]} 27. Kf3 {[%clk 0:02:27.7]} 27... c5
{[%clk 0:03:20.8]} 28. Rxa7 {[%clk 0:02:25.4]} 28... Re8 {[%clk 0:03:15.8]} 29.
Rxg7 {[%clk 0:02:22.5]} 29... c4 {[%clk 0:03:14.2]} 30. Rg4 {[%clk 0:02:14.2]}
30... b5 {[%clk 0:03:10.4]} 31. Re4 {[%clk 0:02:06.6]} 31... Rf8+ {[%clk
0:02:51.2]} 32. Ke3 {[%clk 0:02:05.1]} 32... Rf1 {[%clk 0:02:36.9]} 33. a4
{[%clk 0:01:55.8]} 33... Re1+ {[%clk 0:02:22]} 34. Kf3 {[%clk 0:01:45.4]} 34...
Rxe4 {[%clk 0:02:18.5]} 35. Kxe4 {[%clk 0:01:45.3]} 35... b4 {[%clk 0:02:16]}
36. Kd4 {[%clk 0:01:43.3]} 36... c3 {[%clk 0:02:12.9]} 37. Kd3 {[%clk
0:01:40.7]} 37... Kc7 {[%clk 0:02:09.9]} 38. h4 {[%clk 0:01:31.2]} 38... Kb6
{[%clk 0:02:05.7]} 39. g4 {[%clk 0:01:25.2]} 39... Ka5 {[%clk 0:02:04.8]} 40. h5
{[%clk 0:01:20.8]} 40... Kxa4 {[%clk 0:02:04.3]} 41. g5 {[%clk 0:01:19.4]} 41...
b3 {[%clk 0:02:01.8]} 42. axb3+ {[%clk 0:01:17.9]} 42... Kxb3 {[%clk 0:02:00.4]}
43. g6 {[%clk 0:01:16.9]} 43... hxg6 {[%clk 0:01:57.4]} 44. hxg6 {[%clk
0:01:15.9]} 44... c2 {[%clk 0:01:55.6]} 45. g7 {[%clk 0:01:12.5]} 45... Kb2
{[%clk 0:01:49.2]} 46. g8=Q {[%clk 0:01:05.3]} 46... c1=Q {[%clk 0:01:48.1]} 47.
Qb8+ {[%clk 0:01:00.1]} 47... Ka1 {[%clk 0:01:45.1]} 48. Qa7+ {[%clk 0:00:57.5]}
48... Kb2 {[%clk 0:01:43]} 49. Qb6+ {[%clk 0:00:56.1]} 49... Ka1 {[%clk
0:01:35.1]} 50. Qa5+ {[%clk 0:00:45.2]} 50... Kb1 {[%clk 0:01:33]} 51. Qb4+
{[%clk 0:00:43.3]} 51... Ka1 {[%clk 0:01:31.5]} 52. Qa4+ {[%clk 0:00:41.1]}
52... Kb2 {[%clk 0:01:28.8]} 53. Qb4+ {[%clk 0:00:37.8]} 53... Ka2 {[%clk
0:01:26.2]} 54. Qa4+ {[%clk 0:00:36]} 54... Kb1 {[%clk 0:01:24.4]} 55. Qb3+
{[%clk 0:00:34]} 55... Ka1 {[%clk 0:01:23.2]} 56. Qa4+ {[%clk 0:00:32.9]} 56...
Kb2 {[%clk 0:01:19]} 57. Qb4+ {[%clk 0:00:31.5]} 57... Ka2 {[%clk 0:01:17.3]}
58. Qa4+ {[%clk 0:00:29.3]} 58... Kb1 {[%clk 0:01:09]} 59. Qb3+ {[%clk
0:00:27.3]} 59... Ka1 {[%clk 0:01:05.4]} 60. Qb4 {[%clk 0:00:25.9]} 60... Qd1+
{[%clk 0:01:01.4]} 61. Qd2 {[%clk 0:00:23.4]} 61... Qb1+ {[%clk 0:00:58.9]} 62.
Qc2 {[%clk 0:00:22]} 62... Qb5+ {[%clk 0:00:54.7]} 63. Qc4 {[%clk 0:00:19.5]}
63... Qf5+ {[%clk 0:00:52.7]} 64. Qe4 {[%clk 0:00:18.1]} 64... Qd7+ {[%clk
0:00:50.9]} 65. Qd4+ {[%clk 0:00:16.8]} 65... Qxd4+ {[%clk 0:00:46]} 66. Kxd4
{[%clk 0:00:16.7]} 1/2-1/2